[Event "8th Mersin Open 2024"]
[Site "Mersin"]
[Date "2024.11.11"]
[Round "3"]
[White "Bernadskiy, Vitaliy"]
[Black "Gurbanov, Ismayil"]
[Result "1-0"]
[ECO "A14"]
[WhiteElo "2543"]
[BlackElo "2261"]
[Annotator "TA"]
[PlyCount "89"]
[EventDate "2024.11.10"]
[EventType "swiss"]
[EventCountry "TUR"]
[SourceTitle "playchess.com"]
[Source "ChessBase"]
[SourceQuality "1"]
[TimeControl "5400+30"]

{[%evp 10,89,6,0,12,4,4,4,7,11,7,0,0,11,0,0,39,45,33,28,22,16,23,27,25,15,19,16,22,14,0,8,8,6,0,6,2,0,24,18,26,26,8,0,0,-15,-27,-38,-11,-98,10,10,4,11,10,10,33,16,16,16,67,84,63,0,0,0,391,391,372,372,29977,6914,29978,29976,29988,29989,29989,29990,29990,29991,29991,29992]} 1. Nf3 {[%emt 0:01:00]} d5 {[%emt 0:05:00]} 2. g3 {[%emt 0:00:30]} Nf6 {[%emt 0:00:30]} 3. Bg2 {[%emt 0:00:00]} e6 {[%emt 0:00:00]} 4. O-O {[%emt 0:00:00]} Be7 {[%emt 0:00:00]} 5. c4 {[%emt 0:00:30]} O-O {[%emt 0:00:30]} 6. d3 {[%emt 0:00:30]} b6 {[%emt 0:01:30] [#]} 7. e4 $1 {[%emt 0:09:30]} dxe4 {[%emt 0:22:30]} 8. dxe4 {[%emt 0:15:30]} Qxd1 {[%emt 0:05:30] The position is equal.} 9. Rxd1 {[%emt 0:00:30]} Nxe4 {[%emt 0:00:00]} 10. Nfd2 {[%emt 0:08:30]} Nxd2 {[%emt 0:00:00]} 11. Bxa8 {[%emt 0:00:30]} (11. Bxd2 $5 c6 $8 12. Nc3 $11) 11... Nxc4 {[%emt 0:00:30]} 12. Bg2 {[%emt 0:00:30]} Rd8 {[%emt 0:17:30]} 13. Rxd8+ {[%emt 0:00:30]} Bxd8 {[%emt 0:03:30]} 14. Nc3 {[%emt 0:00:00]} Kf8 {[%emt 0:09:30]} 15. Bf4 {[%emt 0:12:00][%mdl 1024] White has compensation.} g5 {[%emt 0:03:30]} 16. Rd1 {[%emt 0:00:30]} Ke8 {[%emt 0:02:30]} 17. Bc1 {[%emt 0:00:00]} Nd6 {[%emt 0:00:30]} 18. b3 {[%emt 0:02:00]} Bf6 {[%emt 0:03:30]} 19. Ne4 {[%emt 0:01:30]} Nxe4 {[%emt 0:00:30]} 20. Bxe4 {[%emt 0:00:00]} h6 {[%emt 0:00:00]} 21. f4 {[%emt 0:00:00]} c5 {[%emt 0:01:00]} 22. fxg5 {[%emt 0:02:30]} hxg5 {[%emt 0:00:00]} 23. Kg2 {[%emt 0:00:30]} Be7 {[%emt 0:01:00]} 24. Bf3 {[%emt 0:01:30]} f5 {[%emt 0:03:30] [#]} 25. h4 $1 {[%emt 0:05:30]} gxh4 {[%emt 0:00:55]} 26. gxh4 {[%emt 0:03:30]} Bxh4 {[%emt 0:00:49]} 27. Rh1 {[%emt 0:00:30]} Bf6 {[%emt 0:00:25]} 28. Rh6 {[%emt 0:00:00]} Bg7 {[%emt 0:01:43]} 29. Rg6 {[%emt 0:01:00]} (29. Rh7 $1 $11 {keeps the balance.} Kf8 30. Bf4) 29... Kf8 {[%emt 0:00:47]} (29... Kf7 $17 30. Rg5 Bh6) 30. Bf4 $11 {[%emt 0:00:00]} Na6 {[%emt 0:01:25]} 31. Bd6+ {[%emt 0:04:00]} Kf7 {[%emt 0:00:30]} 32. Bh5 {[%emt 0:00:30] Strongly threatening Rg3+.} Bd4 {[%emt 0:00:28]} 33. a3 {[%emt 0:08:30]} Bb7+ {[%emt 0:07:01]} 34. Kg3 {[%emt 0:01:30]} Bd5 {[%emt 0:00:30]} (34... e5 $11) 35. Kf4 $14 {[%emt 0:01:30]} Bxb3 {[%emt 0:04:19]} 36. Be5 {[%emt 0:05:30] Inhibits Bd1.} ({White should try} 36. Rg3+ $14 Kf6 37. Rxb3 e5+ 38. Kf3) 36... Bxe5+ $11 {[%emt 0:04:28]} 37. Kxe5 {[%emt 0:00:33][%mdl 4096] Endgame. Threatens to win with Rg3+. KRB-KBN} Ke7 $2 {[%emt 0:00:00][%mdl 8192]} (37... Kf8 $11 {and Black is okay.}) 38. Rg7+ $18 {[%emt 0:00:21]} Kd8 {[%emt 0:00:00] [#]} 39. Kd6 {[%emt 0:00:00][%cal Rg7g8] Prevents Nc7} (39. Rxa7 Nc7 $11) 39... e5 $2 {[%emt 0:01:15]} (39... Kc8 $18 40. Rxa7 Kb8) 40. Rxa7 {[%emt 0:02:07]} ({Stronger than} 40. Kxe5 Nc7 $11) (40. Bg6 $142 Be6 41. Kxe6 Nc7+ 42. Kxe5 (42. Kxf5 e4 $18) 42... Nb5 43. Bxf5 (43. Kxf5 Nxa3 44. Rxa7 Nb5 $18) 43... Nd4 44. Bg6 (44. Rxa7 Nc6+ 45. Kd6 Nxa7 $11) 44... Kc8 45. Be4 (45. Rxa7 Nc6+ 46. Kd6 Nxa7 $11)) 40... Nb8 {[%emt 0:01:30]} 41. Bg6 {[%emt 0:00:30] White mates.} (41. Kxe5 Nc6+ 42. Kxf5 Nxa7 $19) 41... e4 {[%emt 0:00:30]} 42. Ra8 {[%emt 0:00:30][%cal Ra8b8]} Kc8 {[%emt 0:00:30]} 43. Bxf5+ {[%emt 0:00:30]} Kb7 {[%emt 0:00:30]} 44. Bxe4+ {[%emt 0:00:30]} Kc8 {[%emt 0:00:30]} 45. Ra7 {[%emt 0:00:00] Weighted Error Value: White=0.09 (flawless) /Black=0.57.  Loses game:     	---       	Black=1      Mistake:       	White=3     	Black=3      Inaccurate:     	---       	Black=3      OK:         	White=10    	Black=16     Best:        	White=3     	Black=2} 1-0

[Event "8th Mersin Open 2024"]
[Site "Mersin"]
[Date "2024.11.11"]
[Round "3"]
[White "Annaberdiyev, Meylis"]
[Black "Gulsoy, Mustafa Alpago"]
[Result "1-0"]
[ECO "A94"]
[WhiteElo "2443"]
[BlackElo "2040"]
[Annotator "RC"]
[PlyCount "75"]
[EventDate "2024.11.10"]
[EventType "swiss"]
[EventCountry "TUR"]
[SourceTitle "playchess.com"]
[Source "ChessBase"]
[SourceQuality "1"]
[TimeControl "5400+30"]

1. Nf3 {[%emt 0:01:00]} e6 {[%emt 0:03:00]} 2. d4 {[%emt 0:01:30]} f5 {[%emt 0:00:30]} 3. g3 {[%emt 0:01:30]} Nf6 {[%emt 0:00:30]} 4. Bg2 {[%emt 0:00:00]} c6 {[%emt 0:00:30]} 5. O-O {[%emt 0:00:00]} d5 {[%emt 0:01:30]} 6. b3 {[%emt 0:00:30]} Be7 {[%emt 0:01:30]} 7. c4 {[%emt 0:00:30]} O-O {[%emt 0:00:30]} 8. Ba3 {[%emt 0:00:30]} Nbd7 {[%emt 0:04:30]} 9. Qc2 {[%emt 0:00:30]} Bxa3 {[%emt 0:04:30]} 10. Nxa3 {[%emt 0:00:30]} Qe7 {[%emt 0:00:30]} 11. Qb2 {[%emt 0:00:00]} Ne4 {[%emt 0:00:00]} 12. Nc2 {[%emt 0:00:00]} g5 {[%emt 0:06:00]} 13. Ne5 {[%emt 0:05:30]} Qg7 {[%emt 0:04:30]} 14. Rad1 {[%emt 0:05:30]} Ndf6 {[%emt 0:07:30]} 15. Ne1 {[%emt 0:12:30]} f4 {[%emt 0:05:30]} 16. N1d3 {[%emt 0:00:00]} fxg3 {[%emt 0:00:30]} 17. fxg3 {[%emt 0:01:00]} Bd7 {[%emt 0:02:30]} 18. Qc1 {[%emt 0:05:30]} Rae8 {[%emt 0:06:30]} 19. c5 {[%emt 0:06:30]} Re7 {[%emt 0:02:30]} 20. Bxe4 {[%emt 0:05:30]} Nxe4 {[%emt 0:05:30]} 21. Rxf8+ {[%emt 0:00:30]} Qxf8 {[%emt 0:06:30]} 22. Rf1 {[%emt 0:00:30]} Qg7 {[%emt 0:03:30]} 23. Qa3 {[%emt 0:02:30]} a6 {[%emt 0:00:30]} 24. Qa5 {[%emt 0:00:30]} h6 {[%emt 0:02:30]} 25. Qd8+ {[%emt 0:01:30]} Kh7 {[%emt 0:02:30]} 26. Rf8 {[%emt 0:06:30]} Nf6 {[%emt 0:04:30]} 27. Rxf6 {[%emt 0:07:30]} Qxf6 {[%emt 0:00:00]} 28. Nxd7 {[%emt 0:00:30]} Qxd4+ {[%emt 0:00:00]} 29. Nf2 {[%emt 0:00:30]} Qa1+ {[%emt 0:00:30]} 30. Kg2 {[%emt 0:00:30]} Rg7 {[%emt 0:00:00]} 31. Ng4 {[%emt 0:01:30]} Qb2 {[%emt 0:02:00]} 32. Kf3 {[%emt 0:17:47]} h5 {[%emt 0:09:32]} 33. Nf8+ {[%emt 0:00:30]} Kh8 {[%emt 0:00:06]} 34. Nf6 {[%emt 0:04:03]} g4+ {[%emt 0:03:09]} 35. Kf2 {[%emt 0:00:04]} Rg8 {[%emt 0:00:20]} 36. Ng6+ {[%emt 0:01:03]} Kg7 {[%emt 0:00:30]} 37. Qxg8+ {[%emt 0:00:30]} Kh6 {[%emt 0:00:00]} 38. Qh7+ {[%emt 0:02:17]} 1-0

[Event "8th Mersin Open 2024"]
[Site "Mersin"]
[Date "2024.11.11"]
[Round "3"]
[White "Ebrahimi Herab, Hamidreza"]
[Black "Atis, Hasan"]
[Result "1-0"]
[ECO "D36"]
[WhiteElo "2386"]
[BlackElo "2167"]
[Annotator "ChessBase"]
[PlyCount "61"]
[EventDate "2024.11.10"]
[EventType "swiss"]
[EventCountry "TUR"]
[SourceTitle "playchess.com"]
[Source "ChessBase"]
[SourceQuality "1"]
[TimeControl "5400+30"]

1. d4 {[%emt 0:01:00]} d5 {[%emt 0:01:00]} 2. c4 {[%emt 0:01:30]} e6 {[%emt 0:00:30]} 3. Nc3 {[%emt 0:00:30]} Nf6 {[%emt 0:00:00]} 4. cxd5 {[%emt 0:00:00]} exd5 {[%emt 0:00:00]} 5. Bg5 {[%emt 0:00:00]} c6 {[%emt 0:00:00]} 6. Qc2 {[%emt 0:00:30]} Be7 {[%emt 0:00:00]} 7. e3 {[%emt 0:00:30]} O-O {[%emt 0:00:00]} 8. Bd3 {[%emt 0:00:30]} Re8 {[%emt 0:01:00]} 9. Nge2 {[%emt 0:01:30]} Nbd7 {[%emt 0:00:30]} 10. O-O {[%emt 0:00:30]} Nf8 {[%emt 0:00:30]} 11. f3 {[%emt 0:00:30]} g6 {[%emt 0:00:00]} 12. Rad1 {[%emt 0:00:30]} Ne6 {[%emt 0:00:00]} 13. Bh4 {[%emt 0:00:30]} Nh5 {[%emt 0:07:30]} 14. Bxe7 {[%emt 0:05:30]} Rxe7 {[%emt 0:00:30]} 15. b4 {[%emt 0:02:30]} f5 {[%emt 0:04:30]} 16. Qc1 {[%emt 0:02:30]} Nf6 {[%emt 0:18:30]} 17. e4 {[%emt 0:05:30]} Ng7 {[%emt 0:11:30]} 18. b5 {[%emt 0:07:30]} dxe4 {[%emt 0:04:30]} 19. fxe4 {[%emt 0:02:30]} fxe4 {[%emt 0:00:30]} 20. Bc4+ {[%emt 0:05:30]} Be6 {[%emt 0:05:30]} 21. Rxf6 {[%emt 0:01:30]} Bxc4 {[%emt 0:00:30]} 22. bxc6 {[%emt 0:00:30]} Rc8 {[%emt 0:19:30]} 23. Ng3 {[%emt 0:12:30]} Bd3 {[%emt 0:02:30]} 24. d5 {[%emt 0:01:30]} bxc6 {[%emt 0:05:32]} 25. d6 {[%emt 0:01:30]} Re8 {[%emt 0:02:06]} 26. Ncxe4 {[%emt 0:17:30]} Bxe4 {[%emt 0:00:30]} 27. d7 {[%emt 0:00:00]} Qxf6 {[%emt 0:06:24]} 28. Nxe4 {[%emt 0:00:00]} Qe7 {[%emt 0:02:11]} 29. Qc4+ {[%emt 0:00:30]} Ne6 {[%emt 0:00:38]} 30. dxc8=Q {[%emt 0:01:30]} Rxc8 {[%emt 0:00:38]} 31. Rd7 {[%emt 0:00:00]} 1-0

[Event "8th Mersin Open 2024"]
[Site "Mersin"]
[Date "2024.11.11"]
[Round "3"]
[White "Schekachikhin, Maksim"]
[Black "Primbetov, Kazbek"]
[Result "1-0"]
[ECO "E73"]
[WhiteElo "2353"]
[BlackElo "2059"]
[Annotator "RC"]
[PlyCount "73"]
[EventDate "2024.11.10"]
[EventType "swiss"]
[EventCountry "TUR"]
[SourceTitle "playchess.com"]
[Source "ChessBase"]
[SourceQuality "1"]
[TimeControl "5400+30"]

1. d4 {[%emt 0:01:00]} Nf6 {[%emt 0:01:00]} 2. c4 {[%emt 0:00:00]} g6 {[%emt 0:00:30]} 3. Nc3 {[%emt 0:00:00]} Bg7 {[%emt 0:00:00]} 4. e4 {[%emt 0:00:30]} d6 {[%emt 0:00:00]} 5. Be2 {[%emt 0:00:00]} O-O {[%emt 0:02:30]} 6. Be3 {[%emt 0:00:00]} e5 {[%emt 0:06:30]} 7. d5 {[%emt 0:01:30]} Na6 {[%emt 0:02:30]} 8. h4 {[%emt 0:01:30]} Nc5 {[%emt 0:00:30]} 9. Qc2 {[%emt 0:00:30]} a5 {[%emt 0:01:30]} 10. h5 {[%emt 0:01:30]} Bd7 {[%emt 0:11:30]} 11. O-O-O {[%emt 0:13:30]} Qe8 {[%emt 0:02:30]} 12. h6 {[%emt 0:10:30]} Bh8 {[%emt 0:02:30]} 13. Nh3 {[%emt 0:06:30]} c6 {[%emt 0:05:30]} 14. dxc6 {[%emt 0:06:30]} Bxc6 {[%emt 0:02:30]} 15. Ng5 {[%emt 0:00:30]} Na4 {[%emt 0:18:30]} 16. Nxa4 {[%emt 0:07:30]} Bxa4 {[%emt 0:00:30]} 17. b3 {[%emt 0:00:00]} Bc6 {[%emt 0:00:30]} 18. Rxd6 {[%emt 0:01:00]} Nd7 {[%emt 0:06:30]} 19. Rhd1 {[%emt 0:04:30]} Qe7 {[%emt 0:00:30]} 20. Kb1 {[%emt 0:03:30]} Bf6 {[%emt 0:05:30]} 21. Nf3 {[%emt 0:03:30]} Rfc8 {[%emt 0:01:30]} 22. Ne1 {[%emt 0:05:30]} a4 {[%emt 0:05:30]} 23. Bg4 {[%emt 0:12:30]} axb3 {[%emt 0:01:30]} 24. axb3 {[%emt 0:00:30]} Ra3 {[%emt 0:05:34]} 25. Bc1 {[%emt 0:10:23]} Bxe4 {[%emt 0:12:38]} 26. Bxa3 {[%emt 0:00:33]} Bxc2+ {[%emt 0:01:54]} 27. Nxc2 {[%emt 0:00:07]} Ra8 {[%emt 0:02:50]} 28. Rxd7 {[%emt 0:02:28]} Qe8 {[%emt 0:00:07]} 29. Bb2 {[%emt 0:00:00]} Bg5 {[%emt 0:01:20]} 30. Nb4 {[%emt 0:00:17]} Rd8 {[%emt 0:00:34]} 31. Rxd8 {[%emt 0:00:56]} Bxd8 {[%emt 0:00:30]} 32. Bxe5 {[%emt 0:00:30]} Bg5 {[%emt 0:00:30]} 33. f4 {[%emt 0:00:30]} Bxh6 {[%emt 0:00:30]} 34. Nd5 {[%emt 0:01:56]} Qa8 {[%emt 0:00:35]} 35. Ne7+ {[%emt 0:00:30]} Kf8 {[%emt 0:00:30]} 36. Bf6 {[%emt 0:00:30]} Ke8 {[%emt 0:00:30]} 37. Nc8 {[%emt 0:00:30]} 1-0

[Event "8th Mersin Open 2024"]
[Site "Mersin"]
[Date "2024.11.11"]
[Round "3"]
[White "Jinan Jomon"]
[Black "Khalili, Saeid"]
[Result "1-0"]
[ECO "C42"]
[WhiteElo "2342"]
[BlackElo "2066"]
[Annotator "RC"]
[PlyCount "65"]
[EventDate "2024.11.10"]
[EventType "swiss"]
[EventCountry "TUR"]
[SourceTitle "playchess.com"]
[Source "ChessBase"]
[SourceQuality "1"]
[TimeControl "5400+30"]

1. e4 {[%emt 0:01:00]} e5 {[%emt 0:02:00]} 2. Nf3 {[%emt 0:00:00]} Nf6 {[%emt 0:00:00]} 3. Nxe5 {[%emt 0:01:00]} d6 {[%emt 0:00:00]} 4. Nf3 {[%emt 0:00:30]} Nxe4 {[%emt 0:00:00]} 5. d4 {[%emt 0:00:00]} Be7 {[%emt 0:00:00]} 6. Bd3 {[%emt 0:01:00]} d5 {[%emt 0:00:30]} 7. O-O {[%emt 0:00:00]} O-O {[%emt 0:00:30]} 8. Re1 {[%emt 0:05:00]} Nf6 {[%emt 0:01:30]} 9. h3 {[%emt 0:05:30]} Nc6 {[%emt 0:00:30]} 10. c3 {[%emt 0:00:30]} Re8 {[%emt 0:01:30]} 11. Ne5 {[%emt 0:15:30]} Nxe5 {[%emt 0:04:30]} 12. dxe5 {[%emt 0:00:30]} Nd7 {[%emt 0:02:30]} 13. Nd2 {[%emt 0:09:30]} Nf8 {[%emt 0:13:30]} 14. f4 {[%emt 0:11:30]} f6 {[%emt 0:01:30]} 15. Nf3 {[%emt 0:01:30]} fxe5 {[%emt 0:01:30]} 16. fxe5 {[%emt 0:10:30]} Be6 {[%emt 0:00:30]} 17. Nd4 {[%emt 0:02:30]} Bf7 {[%emt 0:01:30]} 18. Qg4 {[%emt 0:03:30]} Bg6 {[%emt 0:01:30]} 19. Nf5 {[%emt 0:00:30]} c6 {[%emt 0:01:30]} 20. Be3 {[%emt 0:05:30]} b6 {[%emt 0:04:30]} 21. Kh1 {[%emt 0:01:30]} Kh8 {[%emt 0:02:30]} 22. Rad1 {[%emt 0:03:30]} Rc8 {[%emt 0:10:30]} 23. Bg1 {[%emt 0:05:39]} Bc5 {[%emt 0:01:30]} 24. Bxc5 {[%emt 0:00:22]} bxc5 {[%emt 0:02:30]} 25. Nd6 {[%emt 0:00:07]} Kg8 {[%emt 0:01:30]} 26. Nxe8 {[%emt 0:01:07]} Bxe8 {[%emt 0:00:30]} 27. Rf1 {[%emt 0:00:32]} Rc7 {[%emt 0:03:30]} 28. e6 {[%emt 0:00:52]} Qe7 {[%emt 0:00:30]} 29. Rde1 {[%emt 0:00:10]} c4 {[%emt 0:00:30]} 30. Bb1 {[%emt 0:00:17]} Qd6 {[%emt 0:02:30]} 31. Re2 {[%emt 0:01:27]} Bg6 {[%emt 0:04:30]} 32. Ref2 {[%emt 0:00:32]} Rc8 {[%emt 0:02:30]} 33. e7 {[%emt 0:00:07]} 1-0

[Event "8th Mersin Open 2024"]
[Site "Mersin"]
[Date "2024.11.11"]
[Round "3"]
[White "Mammadova, Gulnar"]
[Black "Ererdem, Gani Eren"]
[Result "1-0"]
[ECO "C77"]
[WhiteElo "2328"]
[BlackElo "2066"]
[Annotator "ChessBase"]
[PlyCount "57"]
[EventDate "2024.11.10"]
[EventType "swiss"]
[EventCountry "TUR"]
[SourceTitle "playchess.com"]
[Source "ChessBase"]
[SourceQuality "1"]
[TimeControl "5400+30"]

1. e4 {[%emt 0:01:00]} e5 {[%emt 0:04:00]} 2. Nf3 {[%emt 0:00:30]} Nc6 {[%emt 0:00:30]} 3. Bb5 {[%emt 0:00:00]} a6 {[%emt 0:00:30]} 4. Ba4 {[%emt 0:00:00]} Nf6 {[%emt 0:00:00]} 5. Nc3 {[%emt 0:00:00]} b5 {[%emt 0:01:00]} 6. Bb3 {[%emt 0:00:00]} Bc5 {[%emt 0:00:30]} 7. Nd5 {[%emt 0:00:30]} h6 {[%emt 0:09:30]} 8. c3 {[%emt 0:00:30]} d6 {[%emt 0:01:30]} 9. d4 {[%emt 0:03:30]} Ba7 {[%emt 0:00:30]} 10. Be3 {[%emt 0:00:00]} O-O {[%emt 0:01:30]} 11. Nxf6+ {[%emt 0:06:00]} Qxf6 {[%emt 0:00:30]} 12. Bd5 {[%emt 0:00:00]} Bb7 {[%emt 0:01:30]} 13. g4 {[%emt 0:06:00]} Na5 {[%emt 0:10:30]} 14. Bxb7 {[%emt 0:13:30]} Nxb7 {[%emt 0:00:00]} 15. g5 {[%emt 0:00:00]} hxg5 {[%emt 0:02:00]} 16. Nxg5 {[%emt 0:02:00]} exd4 {[%emt 0:06:30]} 17. cxd4 {[%emt 0:00:30]} c5 {[%emt 0:10:30]} 18. Qh5 {[%emt 0:04:30]} Qh6 {[%emt 0:04:30]} 19. Qxh6 {[%emt 0:06:30]} gxh6 {[%emt 0:00:30]} 20. Nf3 {[%emt 0:01:30]} cxd4 {[%emt 0:04:30]} 21. Bxh6 {[%emt 0:04:30]} Rfe8 {[%emt 0:03:30]} 22. O-O-O {[%emt 0:01:30]} Nc5 {[%emt 0:14:30]} 23. Nxd4 {[%emt 0:11:30]} Kh7 {[%emt 0:08:09]} 24. Nf5 {[%emt 0:03:30]} Nxe4 {[%emt 0:00:59]} 25. Rhg1 {[%emt 0:02:30]} Rg8 {[%emt 0:00:06]} 26. Bg7 {[%emt 0:08:30]} Rac8+ {[%emt 0:02:27]} 27. Kb1 {[%emt 0:02:30]} Rc5 28. Rd3 {[%emt 0:02:30]} Nxf2 {[%emt 0:01:33]} 29. Rxd6 {[%emt 0:00:30]} 1-0

[Event "8th Mersin Open 2024"]
[Site "Mersin"]
[Date "2024.11.11"]
[Round "3"]
[White "Koksal, Ege"]
[Black "Mahmudzade, Yunis"]
[Result "1-0"]
[ECO "D47"]
[WhiteElo "2316"]
[BlackElo "2065"]
[Annotator "RC"]
[PlyCount "65"]
[EventDate "2024.11.10"]
[EventType "swiss"]
[EventCountry "TUR"]
[SourceTitle "playchess.com"]
[Source "ChessBase"]
[SourceQuality "1"]
[TimeControl "5400+30"]

1. d4 {[%emt 0:01:00]} d5 {[%emt 0:01:00]} 2. c4 {[%emt 0:00:30]} c6 {[%emt 0:00:00]} 3. Nc3 {[%emt 0:00:30]} Nf6 {[%emt 0:00:00]} 4. Nf3 {[%emt 0:00:30]} e6 {[%emt 0:00:30]} 5. e3 {[%emt 0:02:30]} Nbd7 {[%emt 0:00:30]} 6. Bd3 {[%emt 0:00:00]} dxc4 {[%emt 0:00:00]} 7. Bxc4 {[%emt 0:00:00]} b5 {[%emt 0:00:00]} 8. Bd3 {[%emt 0:00:30]} Bb7 {[%emt 0:01:30]} 9. a3 {[%emt 0:10:30]} a5 {[%emt 0:02:30]} 10. O-O {[%emt 0:00:30]} b4 {[%emt 0:00:30]} 11. Ne4 {[%emt 0:03:30]} Nxe4 {[%emt 0:02:30]} 12. Bxe4 {[%emt 0:00:30]} Nf6 {[%emt 0:00:30]} 13. Bd3 {[%emt 0:00:30]} Be7 {[%emt 0:00:30]} 14. e4 {[%emt 0:06:30]} O-O {[%emt 0:01:30]} 15. e5 {[%emt 0:00:30]} Nd5 {[%emt 0:00:00]} 16. axb4 {[%emt 0:01:30]} axb4 {[%emt 0:00:00]} 17. Rxa8 {[%emt 0:00:00]} Bxa8 {[%emt 0:00:30]} 18. Bc2 {[%emt 0:07:00]} c5 {[%emt 0:05:30]} 19. Qd3 {[%emt 0:01:30]} g6 {[%emt 0:00:00]} 20. Bh6 {[%emt 0:00:30]} Re8 {[%emt 0:00:00]} 21. Ba4 {[%emt 0:08:30]} c4 {[%emt 0:02:30]} 22. Qc2 {[%emt 0:00:00]} Bf8 {[%emt 0:04:30]} 23. Bg5 {[%emt 0:03:00]} Be7 {[%emt 0:00:30]} 24. Bxe8 {[%emt 0:08:30]} Bxg5 {[%emt 0:00:00]} 25. Qxc4 {[%emt 0:08:30]} Nb6 {[%emt 0:01:00]} 26. Bxf7+ {[%emt 0:11:30]} Kxf7 {[%emt 0:00:00]} 27. Nxg5+ {[%emt 0:00:30]} Qxg5 {[%emt 0:00:00]} 28. Qc7+ {[%emt 0:00:00]} Kg8 {[%emt 0:01:30]} 29. g3 {[%emt 0:01:00]} Qf5 {[%emt 0:11:30]} 30. Qxb6 {[%emt 0:00:30]} Qe4 {[%emt 0:00:00]} 31. Qd8+ {[%emt 0:00:30]} Kg7 {[%emt 0:00:00]} 32. Qf6+ {[%emt 0:00:00]} Kg8 {[%emt 0:00:30]} 33. Qxe6+ {[%emt 0:00:00]} 1-0

[Event "8th Mersin Open 2024"]
[Site "Mersin"]
[Date "2024.11.11"]
[Round "3"]
[White "Odeev, Handszar"]
[Black "Ughuzov, Ravan"]
[Result "1-0"]
[ECO "B11"]
[WhiteElo "2264"]
[BlackElo "2047"]
[Annotator "RC"]
[PlyCount "97"]
[EventDate "2024.11.10"]
[EventType "swiss"]
[EventCountry "TUR"]
[SourceTitle "playchess.com"]
[Source "ChessBase"]
[SourceQuality "1"]
[TimeControl "5400+30"]

1. e4 {[%emt 0:01:00]} c6 {[%emt 0:01:00]} 2. Nc3 {[%emt 0:04:30]} d5 {[%emt 0:00:00]} 3. Qe2 {[%emt 0:03:30]} d4 {[%emt 0:06:00]} 4. Nb1 {[%emt 0:01:30]} e5 {[%emt 0:00:30]} 5. d3 {[%emt 0:02:30]} Bd6 {[%emt 0:02:30]} 6. g3 {[%emt 0:03:30]} c5 {[%emt 0:03:30]} 7. Bg2 {[%emt 0:17:30]} Nc6 {[%emt 0:02:30]} 8. Nf3 {[%emt 0:10:30]} f6 {[%emt 0:02:30]} 9. Nh4 {[%emt 0:03:30]} Be6 {[%emt 0:04:30]} 10. Nf5 {[%emt 0:07:30]} Bf8 {[%emt 0:03:30]} 11. f4 {[%emt 0:01:30]} Qd7 {[%emt 0:07:30]} 12. O-O {[%emt 0:01:30]} O-O-O {[%emt 0:03:30]} 13. fxe5 {[%emt 0:05:30]} fxe5 {[%emt 0:01:30]} 14. Nd2 {[%emt 0:00:30]} g6 {[%emt 0:04:30]} 15. Nh4 {[%emt 0:00:30]} Qg7 {[%emt 0:04:30]} 16. Nc4 {[%emt 0:04:30]} Be7 {[%emt 0:00:30]} 17. Bd2 {[%emt 0:10:12]} Nh6 {[%emt 0:12:30]} 18. Na5 {[%emt 0:03:33]} Nxa5 {[%emt 0:02:30]} 19. Bxa5 {[%emt 0:00:02]} Rdf8 {[%emt 0:01:30]} 20. Bd2 {[%emt 0:00:20]} Nf7 {[%emt 0:05:30]} 21. a3 {[%emt 0:00:59]} Nd6 {[%emt 0:00:30]} 22. c3 {[%emt 0:02:56]} Rxf1+ {[%emt 0:01:30]} 23. Rxf1 {[%emt 0:00:06]} Rf8 {[%emt 0:01:30]} 24. Rc1 {[%emt 0:03:50]} Kb8 {[%emt 0:01:30]} 25. Nf3 {[%emt 0:03:30]} g5 {[%emt 0:04:30]} 26. b4 {[%emt 0:03:25]} g4 {[%emt 0:01:30]} 27. Nh4 {[%emt 0:00:48]} cxb4 {[%emt 0:00:30]} 28. cxd4 {[%emt 0:00:30]} bxa3 {[%emt 0:01:30]} 29. Nf5 {[%emt 0:04:40]} Bxf5 {[%emt 0:05:23]} 30. exf5 {[%emt 0:00:06]} exd4 {[%emt 0:00:03]} 31. Bf4 {[%emt 0:00:50]} Rc8 {[%emt 0:04:15]} 32. Rxc8+ {[%emt 0:00:42]} Kxc8 {[%emt 0:00:42]} 33. Qe6+ {[%emt 0:00:13]} Kc7 {[%emt 0:00:09]} 34. f6 {[%emt 0:00:09]} Qxf6 {[%emt 0:00:40]} 35. Bxd6+ {[%emt 0:00:36]} Kd8 {[%emt 0:00:04]} 36. Qxf6 {[%emt 0:00:19]} Bxf6 {[%emt 0:00:30]} 37. Bxa3 {[%emt 0:00:30]} Kc7 {[%emt 0:00:30]} 38. Be4 {[%emt 0:00:30]} h5 {[%emt 0:00:30]} 39. Bg6 {[%emt 0:00:30]} h4 {[%emt 0:00:30]} 40. Kf2 {[%emt 0:00:30]} a5 {[%emt 0:00:00]} 41. Be8 {[%emt 0:00:16]} Kb6 {[%emt 0:00:46]} 42. Bd7 {[%emt 0:00:30]} Kc7 {[%emt 0:00:30]} 43. Bxg4 {[%emt 0:00:30]} b5 {[%emt 0:00:30]} 44. Bd1 {[%emt 0:00:30]} Kc6 {[%emt 0:00:30]} 45. Kf3 {[%emt 0:00:30]} Kb6 {[%emt 0:00:30]} 46. Bf8 {[%emt 0:00:54]} hxg3 {[%emt 0:02:27]} 47. hxg3 {[%emt 0:00:38]} Bg5 {[%emt 0:00:30]} 48. Ke4 {[%emt 0:00:30]} Be3 {[%emt 0:00:30]} 49. Kd5 {[%emt 0:00:00]} 1-0